Workbook

Sheet Date intiale
A1: Activități administrative | B1: Timp consumat, ore | D1: Schimbare:"-" reducere,"+" majorare | F1: Comentarii
B2: actual | C2: nou | D2: ore | E2: %
A3: Familiarizarea cu obligația informațională (identificarea cerințelor de ținere a registrului de evidență, clarificarea aspectelor datelor necesare): completează pentru prima dată registrul de evidență | B3: 3 | C3: 3 | D3: =C3-B3 -> 0 | E3: =D3/B3 -> 0
A4: Familiarizarea cu obligația informațională (identificarea cerințelor de ținere a registrului de evidență, clarificarea aspectelor datelor necesare): completează repetat registrul de evidență | B4: 0 | C4: 0 | D4: =C4-B4 -> 0 | E4: =D4/B4 -> 
A5: Colectarea/elaborarea datelor necesare (adaptarea datelor existente, calcularea datelor noi, verificarea datelor) | B5: 1 | C5: 1 | D5: =C5-B5 -> 0 | E5: =D5/B5 -> 0
A6: Completarea registrului de evidență | B6: 0.5 | C6: 0.5 | D6: =C6-B6 -> 0 | E6: =D6/B6 -> 0
D7: =C7-B7 -> 0
D8: =C8-B8 -> 0
D9: =C9-B9 -> 0 | E9: =D9/B9 -> 
D10: =C10-B10 -> 0 | E10: =D10/B10 -> 
D11: 0
D12: 0
D13: 0
D14: 0
D15: 0
D16: 0
D17: =C17-B17 -> 0 | E17: =D17/B17 -> 
D18: 0
A19: Date privind cantitatea | B19: Cantitate, număr | D19: număr, p.p. | E19: %
A20: Numărul de agenți economici | B20: 5000 | C20: 5000 | D20: =C20-B20 -> 0 | E20: =D20/B20 -> 0
A21: Ponderea agenților economici care utilizează resurse interne pentru completarea registrului de evidență , % | B21: 1 | C21: 1 | D21: =C21-B21 -> 0 | E21: 0
A22: Ponderea agenților economici care utilizează resurse interne pentru completarea registrului de evidență și care au completat registrul de evidență pentru prima dată, % | B22: 0.1 | C22: 0.1 | D22: =C22-B22 -> 0 | E22: =D22/B22 -> 0
A23: Frecvenţa | B23: 12 | C23: 12 | D23: 0 | E23: 0

Sheet Cost actual
A1: Acte normative | B1: Autorităţi implicate | C1: Descrierea obligației informaționale | D1: Grupuri țintă de agenți economici | E1: Timp, ore | F1: Tarif, lei/oră | G1: Preţ, lei | H1: Achiziţii, lei | I1: Preţ total, lei | J1: Numărul de agenți economici | K1: Frecvenţa | L1: Cantitate, număr pe an | M1: Costuri administrative totale anuale, mii lei
A2: 1 | B2: 2 | C2: 3 | D2: 4 | E2: 5 | F2: 6 | G2: 7=5*6 | H2: 8 | I2: 9=7+8 | J2: 10 | K2: 11 | L2: 12=10*11 | M2: 13=9*12/1000
A3: Legea privind reglementarea activităţii A (art.Z) | C3: Registrul de evidență a utilizării produselor “P” pentru desfășurarea activității “A” | D3: completează repetat registrul | E3: ='Date intiale'!B4+'Date intiale'!B5+'Date intiale'!B6 -> 1.5 | F3: =Tarif!$B$8 -> 64.5 | G3: =E3*F3 -> 96.75 | H3: 0 | I3: =G3+H3 -> 96.75 | J3: ='Date intiale'!$B$20*'Date intiale'!$B$21-J4 -> 4500 | K3: ='Date intiale'!$B$23 -> 12 | L3: =J3*K3 -> 54000 | M3: =I3*L3/1000 -> 5224.5
D4: completează pentru prima dată registrul | E4: ='Date intiale'!B3+'Date intiale'!B5+'Date intiale'!B6 -> 4.5 | F4: =Tarif!$B$8 -> 64.5 | G4: 290.25 | H4: 0 | I4: 290.25 | J4: ='Date intiale'!$B$20*'Date intiale'!$B$21*'Date intiale'!$B$22 -> 500 | K4: ='Date intiale'!$B$23/'Date intiale'!$B$23 -> 1 | L4: 500 | M4: 145.125
D5: completează repetat registrul ulterior completării pentru prima dată în anul 2019 | E5: ='Date intiale'!B4+'Date intiale'!B5+'Date intiale'!B6 -> 1.5 | F5: =Tarif!$B$8 -> 64.5 | G5: 96.75 | H5: 0 | I5: 96.75 | J5: =J4 -> 500 | K5: =IF('Date intiale'!$B$23/2-K4>=0,'Date intiale'!$B$23/2-K4,0) -> 5 | L5: 2500 | M5: 241.875
F6: =Tarif!$B$8 -> 64.5 | G6: =Tarif!$B$10 -> 0 | I6: 0 | J6: ='Date intiale'!$B$20*(1-'Date intiale'!$B$21) -> 0 | K6: ='Date intiale'!$B$23 -> 12 | L6: =J6*K6 -> 0 | M6: 0
F7: =Tarif!$B$8 -> 64.5 | G7: 0 | I7: 0 | L7: 0 | M7: 0
F8: =Tarif!$B$8 -> 64.5 | G8: 0 | I8: 0 | L8: 0 | M8: 0
D9: TOTAL actual | M9: =SUM(M3:M8) -> 5611.5

Sheet Cost nou
A1: Acte normative | B1: Autorităţi implicate | C1: Descrierea obligației informaționale | D1: Grupuri țintă de agenți economici | E1: Timp, ore | F1: Tarif, lei/oră | G1: Preţ, lei | H1: Achiziţii, lei | I1: Preţ total, lei | J1: Numărul de agenți economici | K1: Frecvenţa | L1: Cantitate, număr pe an | M1: Costuri administrative totale anuale, mii lei
A2: 1 | B2: 2 | C2: 3 | D2: 4 | E2: 5 | F2: 6 | G2: 7=5*6 | H2: 8 | I2: 9=7+8 | J2: 10 | K2: 11 | L2: 12=10*11 | M2: 13=9*12/1000
A3: Legea privind reglementarea activităţii A (art.Z) | C3: Registrul de evidență a utilizării produselor “P” pentru desfășurarea activității “A” | D3: completează repetat registrul | E3: ='Date intiale'!C4+'Date intiale'!C5+'Date intiale'!C6 -> 1.5 | F3: =Tarif!$B$8 -> 64.5 | G3: =E3*F3 -> 96.75 | H3: 0 | I3: =G3+H3 -> 96.75 | J3: ='Date intiale'!$C$20*'Date intiale'!$C$21-J4 -> 4500 | K3: ='Date intiale'!$C$23 -> 12 | L3: =J3*K3 -> 54000 | M3: =I3*L3/1000 -> 5224.5
D4: completează pentru prima dată registrul | E4: ='Date intiale'!C3+'Date intiale'!C5+'Date intiale'!C6 -> 4.5 | F4: =Tarif!$B$8 -> 64.5 | G4: =E4*F4 -> 290.25 | H4: 0 | I4: =G4+H4 -> 290.25 | J4: ='Date intiale'!$C$20*'Date intiale'!$C$21*'Date intiale'!$C$22 -> 500 | K4: ='Date intiale'!$C$23/'Date intiale'!$C$23 -> 1 | L4: =J4*K4 -> 500 | M4: =I4*L4/1000 -> 145.125
D5: completează repetat registrul ulterior completării pentru prima dată în anul 2019 | E5: ='Date intiale'!C4+'Date intiale'!C5+'Date intiale'!C6 -> 1.5 | F5: =Tarif!$B$8 -> 64.5 | G5: =E5*F5 -> 96.75 | H5: 0 | I5: =G5+H5 -> 96.75 | J5: =J4 -> 500 | K5: =IF('Date intiale'!$C$23/2-K4>=0,'Date intiale'!$C$23/2-K4,0) -> 5 | L5: =J5*K5 -> 2500 | M5: =I5*L5/1000 -> 241.875
F6: =Tarif!$B$8 -> 64.5 | G6: =Tarif!$B$10 -> 0 | I6: =G6+H6 -> 0 | J6: ='Date intiale'!$C$20*(1-'Date intiale'!$C$21) -> 0 | K6: ='Date intiale'!$C$23 -> 12 | L6: =J6*K6 -> 0 | M6: =I6*L6/1000 -> 0
F7: =Tarif!$B$8 -> 64.5 | G7: =E7*F7 -> 0 | I7: =G7+H7 -> 0 | L7: =J7*K7 -> 0 | M7: =I7*L7/1000 -> 0
F8: =Tarif!$B$8 -> 64.5 | G8: 0 | I8: 0 | L8: 0 | M8: 0
D9: TOTAL nou | M9: =SUM(M3:M8) -> 5611.5
D10: ='Cost actual'!D9:L9 -> TOTAL actual | M10: ='Cost actual'!$M$9 -> 5611.5
D11: Schimbare:"-" reducere,"+" majorare, mii lei | M11: =M9-M10 -> 0
D12: Schimbare:"-" reducere,"+" majorare, % | M12: =M11/M10 -> 0

Sheet Tarif
A1: Denumirea | B1: Valori | C1: Comentarii
A2: Câștigul salarial mediu brut lunar în sectorul real în 2019, lei | B2: 7420.4
A3: Cota de majorare a câștigului salarial, % | B3: 0
A4: Contribuții de asigurări sociale de stat obligatorii achitate de către angajator din sectorul privat, % | B4: 0.18
A5: Primele de asigurare obligatorie de asistență medicală achitate de către angajator, % | B5: 0.045
A6: Cota de cheltuieli generale luată în calcul, % | B6: 0.2
A7: Ore în mediu pe lună pentru program complet de lucru (HG nr.165/2010 cu privire la cuantumul minim garantat al salariului în sectorul real) | B7: 169
A8: Tarif, lei/oră | B8: =ROUND((((B2*(1+B3)*(1+B4+B5))*(1+B6))/B7),1) -> 64.5
A10: Prețul resurselor externe achitat specialistului extern pentru ținerea registrului de evidență, lei
